bitfinex-derivatives/quotes_BTCF0:USTF0_20251119
["timestamp","ask_amount","ask_price","bid_price","bid_amount"]
[1763584497009,0.16075523,89451.0,89450.0,0.40512267]
[1763584497406,0.04883573,89451.0,89450.0,0.40512267]
[1763584497907,0.06251573,89451.0,89450.0,0.38413467]
[1763584498596,0.06251573,89451.0,89450.0,0.36153267]
[1763584500301,0.06251573,89451.0,89450.0,0.40512267]
[1763584500805,0.06251573,89451.0,89450.0,0.51704337]
[1763584500995,0.02615573,89451.0,89450.0,0.51704337]
[1763584501201,0.00336573,89451.0,89450.0,0.51704337]
[1763584501395,0.0011677,89451.0,89450.0,0.51704337]
[1763584501609,0.04022001,89464.0,89463.0,0.04359]
[1763584501810,0.3608,89465.0,89464.0,0.04293]
[1763584502000,0.3608,89465.0,89464.0,0.04366267]
[1763584502402,0.36299803,89465.0,89464.0,0.04366267]
[1763584502599,0.00219803,89465.0,89464.0,0.04366267]
[1763584503002,0.04022001,89471.0,89470.0,0.1559557]
[1763584503210,0.10828,89472.0,89471.0,0.04406]
[1763584503413,0.13250803,89472.0,89471.0,0.04479267]
[1763584503711,0.15360803,89472.0,89471.0,0.04479267]
[1763584504015,0.15360803,89472.0,89471.0,0.02381267]
[1763584504213,0.04022001,89477.0,89476.0,0.0232]
[1763584504405,0.01368,89487.0,89485.0,0.135077]
[1763584504606,0.0456074,89486.0,89485.0,0.02393267]
[1763584504808,0.04313,89478.0,89477.0,0.0001677]
[1763584505005,0.04313,89478.0,89477.0,0.00090037]
[1763584505006,0.40612803,89478.0,89477.0,0.00090037]
[1763584505812,0.04532803,89478.0,89477.0,0.00090037]
[1763584506014,0.04532803,89478.0,89477.0,0.02410037]
[1763584506213,0.08552677,89478.0,89477.0,0.02410037]
[1763584506803,0.04532803,89478.0,89477.0,0.02410037]
[1763584507007,0.00219803,89478.0,89477.0,0.02410037]
[1763584509712,0.04532803,89478.0,89477.0,0.02410037]
[1763584509909,0.04532803,89478.0,89477.0,0.00090037]
[1763584509910,0.15721373,89478.0,89477.0,0.00090037]
[1763584510115,0.15721373,89478.0,89459.0,0.0232]
[1763584510116,0.01363,89460.0,89459.0,0.0232]
[1763584510315,0.03785803,89460.0,89459.0,0.02393267]
[1763584510513,0.37756,89479.0,89478.0,0.04406]
[1763584510716,0.52827677,89479.0,89478.0,0.04479267]
[1763584511013,0.15364803,89479.0,89478.0,0.15667837]
[1763584511504,0.15364803,89479.0,89478.0,0.13537837]
[1763584511705,0.00219803,89479.0,89478.0,0.15667837]
[1763584511911,0.0001677,89487.0,89485.0,0.155937]
[1763584512118,0.0456074,89486.0,89485.0,0.04479267]
[1763584512315,0.0456074,89486.0,89485.0,0.00073267]
[1763584513115,0.0476074,89486.0,89485.0,0.00073267]
[1763584513312,0.0476074,89486.0,89485.0,0.47340967]
[1763584513716,0.0506074,89486.0,89485.0,0.49616967]
[1763584513915,0.0506074,89486.0,89485.0,0.38429267]
[1763584514110,0.0506074,89486.0,89485.0,0.47340967]
[1763584514311,0.0506074,89486.0,89485.0,0.36153267]
[1763584515012,0.1550157,89478.0,89477.0,0.3608]
[1763584515211,0.15721373,89478.0,89477.0,0.36153267]
[1763584515509,0.26549373,89478.0,89477.0,0.00073267]
[1763584516116,0.26749373,89478.0,89477.0,0.00073267]
[1763584516312,0.1550245,89471.0,89470.0,0.0001677]
[1763584516515,0.04532803,89471.0,89470.0,0.00090037]
[1763584517019,0.04532803,89471.0,89470.0,0.04496037]
[1763584517020,0.13631751,89471.0,89470.0,0.04496037]
[1763584517210,0.04532803,89471.0,89470.0,0.04496037]
[1763584517421,0.04732803,89471.0,89470.0,0.04496037]
[1763584517724,0.00619803,89471.0,89470.0,0.04496037]
[1763584519509,0.04932803,89471.0,89470.0,0.04496037]
[1763584519925,0.16122253,89471.0,89470.0,0.04496037]
[1763584520219,0.04932803,89471.0,89470.0,0.13555607]
[1763584520426,0.16122253,89471.0,89470.0,0.02366037]
[1763584520620,0.16122253,89471.0,89470.0,0.00090037]
[1763584520822,0.04932803,89471.0,89470.0,0.02366037]
[1763584521418,0.04932803,89471.0,89470.0,0.04496037]
[1763584521617,0.24884719,89471.0,89470.0,0.00090037]
[1763584521819,0.16122253,89471.0,89470.0,0.00090037]
[1763584523118,0.25255191,89471.0,89470.0,0.0001677]
[1763584523329,0.25255191,89471.0,89470.0,0.04496037]
[1763584523330,0.14065741,89471.0,89470.0,0.04496037]
[1763584525416,0.00619803,89471.0,89470.0,0.04496037]
[1763584527623,0.05139803,89471.0,89470.0,0.04496037]
[1763584528021,0.16329253,89471.0,89470.0,0.04496037]
[1763584528222,0.16329253,89471.0,89470.0,0.0001677]
[1763584528433,0.16329253,89471.0,89470.0,0.00090037]
[1763584529327,0.09159677,89471.0,89470.0,0.02355037]
[1763584529516,0.1832483,89471.0,89470.0,0.04558037]
[1763584529722,0.05139803,89471.0,89470.0,0.0001677]
[1763584529933,0.09159677,89471.0,89470.0,0.0001677]
[1763584530122,0.09159677,89471.0,89463.0,0.3608]
[1763584530123,0.1563532,89464.0,89463.0,0.3608]
[1763584530320,0.1563532,89464.0,89452.0,0.1565982]
[1763584530321,0.04445,89453.0,89452.0,0.1565982]
[1763584530520,0.04664803,89453.0,89452.0,0.15733087]
[1763584531923,0.00219803,89453.0,89452.0,0.15733087]
[1763584532430,0.03616,89460.0,89459.0,0.1559595]
[1763584532632,0.03835803,89460.0,89459.0,0.51749217]
[1763584533034,0.00219803,89460.0,89459.0,0.51749217]
[1763584533328,0.17146623,89460.0,89459.0,0.04478267]
[1763584533523,0.17146623,89460.0,89459.0,0.02329267]
[1763584533724,0.05955803,89460.0,89459.0,0.04478267]
[1763584534031,0.03851803,89460.0,89459.0,0.04478267]
[1763584534221,0.00319803,89460.0,89459.0,0.04478267]
[1763584535018,0.001,89460.0,89459.0,0.04478267]
[1763584535218,0.0001677,89461.0,89460.0,0.1119082]
[1763584535430,0.07853,89473.0,89472.0,0.04405]
[1763584535623,0.07853,89473.0,89472.0,0.40558267]
[1763584536127,0.08072803,89473.0,89472.0,0.40558267]
[1763584536427,0.10276803,89473.0,89472.0,0.40558267]
[1763584536834,0.10476803,89473.0,89472.0,0.40558267]
[1763584538327,0.04874803,89473.0,89472.0,0.40558267]
[1763584538926,0.04047811,89486.0,89478.0,0.1118857]
[1763584539135,0.10057,89499.0,89498.0,0.1118607]
[1763584539330,0.10276803,89499.0,89498.0,0.11259337]
[1763584539635,0.10276803,89499.0,89498.0,0.47339337]
[1763584540126,0.10276803,89499.0,89498.0,0.36153267]
[1763584540326,0.05821803,89499.0,89498.0,0.47339337]
[1763584540522,0.08072803,89499.0,89498.0,0.47339337]
[1763584540724,0.10276803,89499.0,89498.0,0.36153267]
[1763584541337,0.10276803,89499.0,89498.0,0.00073267]
[1763584541527,0.10576803,89499.0,89498.0,0.00073267]
[1763584542229,0.04455,89491.0,89490.0,0.0001676]
[1763584542434,0.04674803,89491.0,89490.0,0.00090027]
[1763584542632,0.04674803,89491.0,89489.0,0.3608]
[1763584542633,0.1692307,89490.0,89489.0,0.3259676]
[1763584542930,0.04455,89482.0,89476.0,0.1118879]
[1763584543136,0.04674803,89482.0,89471.0,0.10824]
[1763584543429,0.04674803,89482.0,89476.0,0.1118873]
[1763584543629,0.04674803,89482.0,89481.0,0.36153267]
[1763584544237,0.04874803,89482.0,89481.0,0.40558267]
[1763584544437,0.04874803,89482.0,89481.0,0.38409267]
[1763584544635,0.04874803,89482.0,89481.0,0.40558267]
[1763584545337,0.05074803,89482.0,89481.0,0.40558267]
[1763584545736,0.004,89482.0,89481.0,0.40558267]
[1763584546139,0.00016727,89490.0,89489.0,0.155922]
[1763584546333,0.00016727,89490.0,89489.0,0.51745467]
[1763584546738,0.04455,89508.0,89507.0,0.1118495]
[1763584546937,0.04674803,89508.0,89507.0,0.00073267]
[1763584547340,0.13702001,89508.0,89507.0,0.00073267]
[1763584547540,0.04674803,89508.0,89507.0,0.00073267]
[1763584548442,0.04674803,89508.0,89507.0,0.04319267]
[1763584548741,0.02470803,89508.0,89507.0,0.04319267]
[1763584548944,0.00219803,89508.0,89507.0,0.04319267]
[1763584550442,0.04674803,89508.0,89507.0,0.04319267]
[1763584551539,0.04674803,89508.0,89507.0,0.00073267]
[1763584551846,0.00219803,89508.0,89507.0,0.04319267]
[1763584552445,0.04674803,89508.0,89507.0,0.00073267]
[1763584552652,0.1082,89514.0,89512.0,0.04246]
[1763584552947,0.02470803,89514.0,89513.0,0.04319267]
[1763584553347,0.04674803,89514.0,89513.0,0.00073267]
[1763584553641,0.04674803,89514.0,89513.0,0.02196267]
[1763584553845,0.02570803,89514.0,89513.0,0.04319267]
[1763584554231,0.04774803,89514.0,89513.0,0.04319267]
[1763584554435,0.001,89514.0,89513.0,0.04419267]
[1763584554646,0.04774803,89514.0,89513.0,0.04419267]
[1763584554843,0.04774803,89514.0,89513.0,0.04319267]
[1763584555148,0.04774803,89514.0,89513.0,0.00173267]
[1763584555447,0.04774803,89514.0,89513.0,0.00073267]
[1763584555745,0.04774803,89514.0,89513.0,0.00173267]
[1763584556041,0.04674803,89514.0,89513.0,0.00173267]
[1763584556249,0.04674803,89514.0,89513.0,0.02296267]
[1763584556547,0.04674803,89514.0,89513.0,0.00173267]
[1763584556745,0.05955803,89514.0,89513.0,0.04419267]
[1763584556943,0.00219803,89514.0,89513.0,0.04419267]
[1763584557548,0.05955803,89514.0,89513.0,0.04419267]
[1763584557843,0.00219803,89514.0,89513.0,0.04419267]
[1763584558432,0.05955803,89514.0,89513.0,0.04419267]
[1763584558643,0.17139873,89514.0,89513.0,0.00173267]
[1763584559345,0.05955803,89514.0,89513.0,0.00173267]
[1763584560846,0.06055803,89514.0,89513.0,0.04419267]
[1763584561045,0.06055803,89514.0,89513.0,0.04319267]
[1763584561247,0.00560803,89514.0,89513.0,0.04419267]
[1763584561649,0.00560803,89514.0,89513.0,0.04319267]
[1763584562048,0.02764803,89514.0,89513.0,0.04319267]
[1763584562542,0.04098803,89514.0,89513.0,0.04419267]
[1763584563240,0.03998803,89514.0,89513.0,0.04419267]
[1763584563551,0.04098803,89514.0,89513.0,0.04419267]
[1763584563844,0.04098803,89514.0,89513.0,0.00173267]
[1763584564042,0.04098803,89514.0,89513.0,0.00073267]
[1763584564444,0.04098803,89514.0,89513.0,0.02197267]
[1763584564641,0.15282873,89514.0,89513.0,0.00073267]
[1763584565246,0.04098803,89514.0,89513.0,0.00073267]
[1763584566253,0.001,89514.0,89513.0,0.04424267]
[1763584568051,0.05779,89514.0,89513.0,0.04424267]
[1763584568357,0.05779,89514.0,89513.0,0.02197267]
[1763584568749,0.05779,89514.0,89513.0,0.00073267]
[1763584569155,0.05779,89514.0,89513.0,0.04424267]
[1763584569558,0.04445,89514.0,89513.0,0.04424267]
[1763584570247,0.05779,89514.0,89513.0,0.04424267]
[1763584571049,0.05779,89514.0,89513.0,0.00073267]
[1763584571556,0.05779,89514.0,89513.0,0.11257467]
[1763584571756,0.05779,89514.0,89513.0,0.13381467]
[1763584572453,0.001,89514.0,89513.0,0.15608467]
[1763584573558,0.05779,89514.0,89513.0,0.15608467]
[1763584573856,0.03551,89514.0,89513.0,0.15608467]
[1763584574054,0.02217,89514.0,89513.0,0.15608467]
[1763584574958,0.001,89514.0,89513.0,0.15608467]
[1763584576356,0.04445,89514.0,89513.0,0.15608467]
[1763584576557,0.001,89514.0,89513.0,0.15608467]
[1763584576751,0.04445,89514.0,89513.0,0.15608467]
[1763584576953,0.05779,89514.0,89513.0,0.00073267]
[1763584578051,0.05779,89514.0,89513.0,0.04424267]
[1763584578764,0.001,89514.0,89513.0,0.04424267]
[1763584579064,0.05779,89514.0,89513.0,0.04424267]
[1763584579459,0.02217,89514.0,89513.0,0.04424267]
[1763584579759,0.001,89514.0,89513.0,0.04424267]
[1763584582865,0.02144925,89526.0,89525.0,0.04351]
[1763584583052,0.02144925,89526.0,89525.0,0.40650803]
[1763584583251,0.02144925,89526.0,89525.0,0.51833503]
[1763584583462,0.04372925,89526.0,89525.0,0.51833503]
[1763584583864,0.00027925,89526.0,89525.0,0.51833503]
[1763584584351,0.1118103,89539.0,89538.0,0.1553207]
[1763584584352,0.04345,89539.0,89538.0,0.1553207]
[1763584584564,0.04345,89539.0,89538.0,0.51831873]
[1763584584760,0.02117,89545.0,89544.0,0.1553132]
[1763584584961,0.04345,89545.0,89544.0,0.15751123]
[1763584586168,0.02117,89545.0,89544.0,0.04570803]
[1763584586555,0.02317,89545.0,89544.0,0.04570803]
[1763584586757,0.10816,89555.0,89554.0,0.1570608]
[1763584586963,0.05164536,89560.0,89554.0,0.40826803]
[1763584587165,0.1447198,89559.0,89558.0,0.1570558]
[1763584587367,0.05677,89559.0,89558.0,0.15925383]
[1763584587960,0.05677,89559.0,89558.0,0.00219803]
[1763584588356,0.11279,89559.0,89558.0,0.00219803]
[1763584588556,0.11279,89559.0,89558.0,0.00719803]
[1763584589165,0.04343,89555.0,89554.0,0.3658]
[1763584589363,0.2112395,89555.0,89554.0,0.36799803]
[1763584589670,0.2112395,89555.0,89554.0,0.3608]
[1763584589867,0.169167,89541.0,89540.0,0.3608]
[1763584590072,0.169167,89541.0,89540.0,0.36299803]
[1763584590365,0.05736,89541.0,89540.0,0.36299803]
[1763584592080,0.05736,89541.0,89540.0,0.3608]
[1763584592081,0.05936,89541.0,89540.0,0.3608]
[1763584592278,0.154267,89533.0,89532.0,0.00016751]
[1763584592680,0.154267,89533.0,89516.0,0.3608]
[1763584592681,0.1331873,89517.0,89516.0,0.3608]
[1763584592886,0.04245,89517.0,89516.0,0.36299803]
[1763584593087,0.04245,89516.0,89500.0,0.26518603]
[1763584593382,0.3608,89510.0,89509.0,0.04363]
[1763584593570,0.36299803,89510.0,89509.0,0.04436267]
[1763584594191,0.38434803,89510.0,89509.0,0.04436267]
[1763584594383,0.41894803,89510.0,89509.0,0.00073267]
[1763584594591,0.1118518,89506.0,89502.0,0.1330453]
[1763584594776,0.04245,89504.0,89503.0,0.00073267]
[1763584594978,0.04464803,89504.0,89503.0,0.00073267]
[1763584595178,0.04245,89502.0,89501.0,0.00016751]
[1763584595373,0.40544803,89502.0,89501.0,0.04453018]
[1763584595780,0.40544803,89502.0,89501.0,0.00090018]
[1763584596587,0.40544803,89502.0,89501.0,0.00190018]
[1763584599684,0.42981854,89502.0,89501.0,0.00190018]
[1763584600082,0.42981854,89502.0,89501.0,0.04553018]
[1763584600281,0.38736854,89502.0,89501.0,0.04553018]
[1763584600490,0.42981854,89502.0,89501.0,0.00190018]
[1763584600683,0.42981854,89502.0,89501.0,0.02309018]
[1763584600884,0.40544803,89502.0,89501.0,0.00116751]
[1763584602094,0.40544803,89502.0,89501.0,0.00016751]
[1763584602295,0.40544803,89502.0,89501.0,0.00290018]
[1763584602893,0.40544803,89502.0,89501.0,0.00190018]
[1763584604691,0.38434803,89502.0,89501.0,0.04553018]
[1763584604895,0.40544803,89502.0,89501.0,0.02309018]
[1763584605093,0.40544803,89502.0,89501.0,0.04553018]
[1763584605402,0.40544803,89502.0,89501.0,0.00190018]
[1763584606089,0.40544803,89502.0,89501.0,0.04553018]
[1763584608094,0.36299803,89502.0,89501.0,0.04553018]
[1763584608289,0.3608,89502.0,89501.0,0.04553018]
[1763584608496,0.12951,89516.0,89515.0,0.04363]
[1763584608691,0.15280803,89516.0,89515.0,0.04436267]
[1763584608893,0.15280803,89516.0,89515.0,0.15620217]
[1763584609094,0.15280803,89516.0,89515.0,0.11257217]
[1763584609692,0.15380803,89516.0,89515.0,0.11257217]
[1763584610197,0.15380803,89516.0,89515.0,0.00073267]
[1763584610397,0.04245,89502.0,89501.0,0.15565451]
[1763584610696,0.05595,89514.0,89513.0,0.155472]
[1763584610892,0.05814803,89514.0,89513.0,0.15620467]
[1763584611288,0.00219803,89514.0,89513.0,0.15620467]
[1763584612092,0.001,89516.0,89515.0,0.04363]
[1763584612291,0.00016751,89518.0,89517.0,0.04363]
[1763584612492,0.12951,89531.0,89530.0,0.04363]
[1763584612693,0.12951,89531.0,89530.0,0.40662803]
[1763584612897,0.04245,89531.0,89530.0,0.40662803]
[1763584614092,0.1542795,89523.0,89522.0,0.00016751]
[1763584614290,0.04245,89523.0,89522.0,0.00236554]
[1763584615096,0.04245,89523.0,89522.0,0.11419624]
[1763584615298,0.1542795,89523.0,89522.0,0.00236554]
[1763584615698,0.04245,89523.0,89522.0,0.00236554]
[1763584615888,0.04245,89523.0,89522.0,0.00336554]
[1763584616502,0.04245,89523.0,89522.0,0.02455554]
[1763584616713,0.04245,89523.0,89522.0,0.04699554]
[1763584617300,0.02135,89523.0,89522.0,0.04699554]
[1763584617698,0.04245,89523.0,89522.0,0.04699554]
[1763584620002,0.04245,89523.0,89522.0,0.00336554]
[1763584620507,0.04245,89523.0,89511.0,0.3608]
[1763584620508,0.04245,89512.0,89511.0,0.40443]
[1763584620694,0.04464803,89512.0,89511.0,0.40516264]
[1763584621095,0.04464803,89512.0,89500.0,0.27480603]
[1763584621096,0.04245,89494.0,89493.0,0.4726668]
[1763584621295,0.04464803,89494.0,89493.0,0.15622944]
[1763584621507,0.00219803,89494.0,89493.0,0.15622944]
[1763584621800,0.00219803,89494.0,89493.0,0.51702944]
[1763584622399,0.00016761,89502.0,89501.0,0.161547]
[1763584622595,0.00016761,89502.0,89501.0,0.52454503]
[1763584622998,0.04929761,89502.0,89501.0,0.52454503]
[1763584624504,0.02748761,89502.0,89501.0,0.52454503]
[1763584624708,1e-08,89502.0,89501.0,0.52654503]
[1763584624907,0.10816,89523.0,89520.0,0.04969]
[1763584625108,0.3608,89532.0,89531.0,0.1615095]
[1763584625307,0.43431857,89532.0,89531.0,0.16370753]
[1763584625804,0.07351857,89532.0,89531.0,0.16370753]
[1763584626310,0.04913,89532.0,89531.0,0.16370753]
[1763584626509,0.02732,89532.0,89531.0,0.16370753]
[1763584627407,0.04913,89532.0,89531.0,0.16370753]
[1763584628105,0.02832,89532.0,89531.0,0.16370753]
[1763584629906,0.05013,89532.0,89531.0,0.16370753]
[1763584630799,0.05013,89532.0,89531.0,0.05188803]
[1763584631005,0.07454937,89532.0,89531.0,0.14141753]
[1763584631415,0.02832,89532.0,89531.0,0.16370753]
[1763584631816,0.05013,89532.0,89531.0,0.16370753]
[1763584632206,0.05013,89532.0,89531.0,0.00219803]
[1763584632407,0.07354999,89532.0,89531.0,0.00219803]
[1763584633918,0.1609582,89524.0,89523.0,0.00016761]
[1763584634212,0.1609582,89524.0,89503.0,0.05932694]
[1763584634213,0.0139,89520.0,89502.0,0.1118546]
[1763584634516,0.04913,89510.0,89509.0,0.52453503]
[1763584634702,0.0139,89520.0,89509.0,0.52453503]
[1763584634911,0.04913,89520.0,89519.0,0.1615245]
[1763584635220,0.18168365,89520.0,89519.0,0.16372253]
[1763584635515,0.08746666,89520.0,89519.0,0.16372253]
[1763584635818,0.17119,89520.0,89519.0,0.16372253]
[1763584636205,0.19562791,89520.0,89519.0,0.16372253]
[1763584636412,0.17119,89520.0,89519.0,0.16372253]
[1763584637014,0.10816,89520.0,89519.0,0.16372253]
[1763584637316,0.10816,89520.0,89519.0,0.16472253]
[1763584637715,0.10816,89520.0,89519.0,0.16372253]
[1763584637912,0.04929761,89528.0,89527.0,0.1615145]
[1763584638118,0.0737432,89528.0,89527.0,0.16371253]
[1763584638317,0.00016761,89528.0,89527.0,0.16371253]
[1763584639107,0.00016761,89528.0,89527.0,0.16571253]
[1763584639311,0.04929761,89528.0,89527.0,0.16571253]
[1763584639713,0.04929761,89528.0,89527.0,0.11602253]
[1763584640007,0.04929761,89528.0,89527.0,0.00419803]
[1763584640213,0.16112081,89528.0,89527.0,0.00419803]
[1763584640422,0.07378694,89528.0,89527.0,0.00419803]
[1763584640716,0.04929761,89528.0,89527.0,0.00419803]
[1763584641317,0.07378864,89528.0,89527.0,0.00419803]
[1763584641521,0.07378864,89528.0,89527.0,0.002]
[1763584642017,0.04913,89524.0,89523.0,0.1118284]
[1763584642213,0.07362103,89524.0,89523.0,0.11402643]
[1763584642723,0.07362103,89524.0,89523.0,0.16371643]
[1763584643613,0.07362272,89524.0,89523.0,0.16371643]
[1763584643813,0.04913,89524.0,89523.0,0.16371643]
[1763584644222,0.04913,89524.0,89523.0,0.16571643]
[1763584644518,0.00016761,89528.0,89523.0,0.52651643]
[1763584644717,0.04929761,89528.0,89527.0,0.1615145]
[1763584644925,0.07378996,89528.0,89527.0,0.16371253]
[1763584646216,0.00016761,89528.0,89527.0,0.16371253]
[1763584647123,0.00016761,89528.0,89527.0,0.16471253]
[1763584647321,0.00016761,89528.0,89527.0,0.05288803]
[1763584647825,0.04888761,89528.0,89527.0,0.16571253]
[1763584648620,0.04888761,89528.0,89527.0,0.05388803]
[1763584648814,0.04888761,89528.0,89527.0,0.00419803]
[1763584649925,0.02469761,89528.0,89527.0,0.05271803]
[1763584650322,0.04888761,89528.0,89527.0,0.05071803]
[1763584650523,0.04888761,89528.0,89527.0,0.05271803]
[1763584651415,0.04888761,89528.0,89527.0,0.05071803]
[1763584651623,0.04888761,89528.0,89527.0,0.00419803]
[1763584651926,0.04888761,89528.0,89527.0,0.02881803]
[1763584652723,0.04888761,89528.0,89527.0,0.05394803]
[1763584653629,0.00016761,89528.0,89527.0,0.05394803]
[1763584654026,0.02564761,89528.0,89527.0,0.05394803]
[1763584654225,0.05016667,89528.0,89527.0,0.05394803]
[1763584654422,0.07608667,89528.0,89527.0,0.05394803]
[1763584655126,0.05156761,89528.0,89527.0,0.05394803]
[1763584656333,0.02564761,89528.0,89527.0,0.05394803]
[1763584656831,0.00016761,89528.0,89527.0,0.05394803]
[1763584657027,0.05156761,89528.0,89527.0,0.05394803]
[1763584659829,0.02564761,89528.0,89527.0,0.05394803]
[1763584660022,0.05156761,89528.0,89527.0,0.05394803]
[1763584661034,0.00016761,89528.0,89527.0,0.05394803]
[1763584661933,0.02548,89540.0,89539.0,0.1607195]
[1763584662129,0.02548,89540.0,89539.0,0.16291753]
[1763584663927,0.0514,89540.0,89539.0,0.16291753]
[1763584664534,0.00016744,89548.0,89547.0,0.1607095]
[1763584664835,0.00016744,89548.0,89547.0,0.16290753]
[1763584665136,0.00016744,89548.0,89547.0,0.02597803]
[1763584665137,0.05156744,89548.0,89547.0,0.02597803]
[1763584665336,0.05156744,89548.0,89547.0,0.05110803]
[1763584665732,0.05256744,89548.0,89547.0,0.05110803]
[1763584666722,0.05256744,89548.0,89547.0,0.00219803]
[1763584667233,0.05256744,89548.0,89547.0,0.00319803]
[1763584667836,0.05256744,89548.0,89547.0,0.05210803]
[1763584669531,0.05256744,89548.0,89547.0,0.00319803]
[1763584669726,0.05256744,89548.0,89547.0,0.001]
[1763584673131,0.06697,89532.0,89531.0,0.00016761]
[1763584673532,0.06697,89532.0,89531.0,0.05127564]
[1763584673731,0.0514,89532.0,89531.0,0.05127564]
[1763584674241,0.06697,89532.0,89531.0,0.05127564]
[1763584674631,0.06697,89532.0,89531.0,0.05227564]
[1763584674938,0.15952,89539.0,89538.0,0.1607207]
[1763584675131,0.0514,89539.0,89538.0,0.16291873]
[1763584676442,0.15968744,89548.0,89547.0,0.1607095]
[1763584676736,0.15968744,89548.0,89547.0,0.16290753]
[1763584676944,0.15968744,89548.0,89547.0,0.00219803]
[1763584676945,0.27148574,89548.0,89547.0,0.00219803]
[1763584677138,0.0514,89539.0,89538.0,0.33042052]
[1763584677338,0.0514,89539.0,89538.0,0.16391873]
[1763584677842,0.0514,89539.0,89538.0,0.16291873]
[1763584678541,0.0514,89539.0,89538.0,0.16391873]
[1763584679549,0.02548,89539.0,89538.0,0.16391873]
[1763584680341,0.0514,89539.0,89538.0,0.16391873]
[1763584680934,0.15968744,89548.0,89547.0,0.1607095]
[1763584681244,0.15968744,89548.0,89547.0,0.16290753]
[1763584681540,0.00016744,89548.0,89547.0,0.16290753]
[1763584681747,0.43665566,89559.0,89558.0,0.0475]
[1763584681748,0.3608,89559.0,89558.0,0.0475]
[1763584682046,0.04019044,89580.0,89565.0,0.0475]
[1763584682241,0.04789913,89566.0,89565.0,0.04969803]
[1763584683144,0.00027913,89566.0,89565.0,0.04969803]
[1763584683749,0.10812,89582.0,89565.0,0.04969803]
[1763584683750,0.04762,89583.0,89582.0,0.1117558]
[1763584683950,0.04762,89583.0,89582.0,0.00219803]
[1763584685039,0.04962,89583.0,89582.0,0.00219803]
[1763584685247,0.04762,89569.0,89568.0,0.0475]
[1763584685453,0.04762,89569.0,89568.0,0.16147133]
[1763584686453,0.001,89569.0,89568.0,0.16147133]
[1763584686952,0.002,89569.0,89568.0,0.17259133]
[1763584687451,0.002,89569.0,89568.0,0.16147133]
[1763584687848,0.04962,89569.0,89568.0,0.16147133]
[1763584688045,0.02438,89569.0,89568.0,0.16147133]
[1763584690150,0.04962,89569.0,89568.0,0.16147133]
[1763584690554,0.04962,89569.0,89568.0,0.13687133]
[1763584691052,0.04962,89569.0,89568.0,0.00219803]
[1763584692351,0.04962,89569.0,89568.0,0.02509803]
[1763584692757,0.02438,89569.0,89568.0,0.04969803]
[1763584692958,0.04962,89569.0,89568.0,0.04969803]
[1763584695257,0.04962,89569.0,89568.0,0.02509803]
[1763584695457,0.04962,89569.0,89568.0,0.00219803]
[1763584695658,0.04962,89569.0,89544.0,0.01355]
[1763584695659,0.04762,89558.0,89543.0,0.3608]
[1763584695864,0.04762,89558.0,89554.0,0.1117901]
[1763584696069,0.04762,89558.0,89543.0,0.3608]
[1763584696368,0.04762,89558.0,89556.0,0.1117878]
[1763584696867,0.04862,89558.0,89555.0,0.1117889]
[1763584697067,0.04862,89558.0,89557.0,0.00236554]
[1763584698269,0.04862,89558.0,89557.0,0.04986554]
[1763584698462,0.04862,89558.0,89557.0,0.02526554]
[1763584698662,0.40942,89558.0,89557.0,0.00236554]
[1763584700258,0.40942,89558.0,89557.0,0.04986554]
[1763584700462,0.04862,89558.0,89557.0,0.04986554]
[1763584701670,0.001,89558.0,89557.0,0.04986554]
[1763584701869,0.04862,89558.0,89557.0,0.04986554]
[1763584702662,0.04862,89558.0,89557.0,0.00236554]
[1763584702869,0.04862,89558.0,89557.0,0.04986554]
[1763584703058,0.04862,89558.0,89557.0,0.00236554]
[1763584703460,0.40942,89558.0,89557.0,0.00236554]
[1763584704373,0.40942,89558.0,89557.0,0.00016751]
[1763584704563,0.04762,89552.0,89551.0,0.1117938]
[1763584704763,0.04762,89552.0,89551.0,0.11399183]
[1763584705368,0.04762,89552.0,89551.0,0.00219803]
[1763584705568,0.04762,89552.0,89545.0,0.1118011]
[1763584705569,0.1562308,89546.0,89545.0,0.1118011]
[1763584705771,0.1562308,89546.0,89543.0,0.00016751]
[1763584705772,0.04416,89544.0,89543.0,0.00016751]
[1763584706070,0.3608,89548.0,89526.0,0.15846495]
[1763584706071,0.04416,89527.0,89526.0,0.15846495]
[1763584706267,0.04416,89527.0,89526.0,0.04883728]
[1763584706467,0.04416,89527.0,89526.0,0.00247728]
[1763584706768,0.04416,89527.0,89526.0,0.02577728]
[1763584707973,0.04416,89527.0,89526.0,0.00247728]
[1763584708163,0.04416,89519.0,89518.0,0.00016751]
[1763584708362,0.04416,89519.0,89495.0,0.40053854]
[1763584708363,0.05775,89496.0,89495.0,0.40053854]
[1763584708564,0.05775,89496.0,89489.0,0.05960781]
[1763584708565,0.05775,89487.0,89486.0,0.08637791]
[1763584708763,0.01359,89514.0,89486.0,0.08637791]
[1763584708764,0.1118705,89491.0,89486.0,0.0024774]
[1763584708971,0.01168,89487.0,89486.0,0.0257774]
[1763584709573,0.00868,89487.0,89486.0,0.0257774]
[1763584709777,0.36948,89487.0,89486.0,0.0257774]
[1763584709974,0.36948,89487.0,89486.0,0.0024774]
[1763584710179,0.36948,89487.0,89482.0,9.451e-05]
[1763584710180,0.00568,89483.0,89482.0,9.451e-05]
[1763584710865,0.00516,89463.0,89460.0,0.00677]
[1763584711064,0.00316,89463.0,89462.0,0.01173803]
[1763584711774,0.0132426,89463.0,89462.0,0.00954]
[1763584711969,0.05033,89452.0,89451.0,0.3608]
[1763584712166,0.04633,89452.0,89451.0,0.39515803]
[1763584712363,0.04633,89452.0,89443.0,0.00016761]
[1763584712364,0.05039,89447.0,89443.0,0.00016761]
[1763584712564,0.05039,89447.0,89446.0,0.05565753]
[1763584712778,0.00012431,89452.0,89451.0,0.05318]
[1763584712969,0.10324431,89452.0,89451.0,0.05537803]
[1763584713170,0.15363431,89452.0,89451.0,0.05537803]
[1763584713478,0.15363431,89452.0,89451.0,0.00219803]
[1763584713778,0.15363431,89452.0,89451.0,0.00519803]
[1763584715380,0.15363431,89452.0,89451.0,0.11711753]
[1763584716082,0.15363431,89452.0,89451.0,0.17029753]
[1763584716379,0.15363431,89452.0,89451.0,0.00519803]
[1763584717174,0.26555251,89452.0,89451.0,0.00519803]
[1763584717470,0.26555251,89452.0,89451.0,0.003]
[1763584717671,0.27139251,89452.0,89451.0,0.003]
[1763584718484,0.05039,89447.0,89446.0,0.0002795]
[1763584718680,0.41119,89447.0,89446.0,0.0002795]
[1763584719380,0.41119,89447.0,89446.0,0.05565753]
[1763584719381,0.46896,89447.0,89446.0,0.05565753]
[1763584719577,0.4978,89447.0,89446.0,0.05665753]
[1763584719777,0.52035,89447.0,89446.0,0.05665753]
[1763584720175,0.52035,89447.0,89446.0,0.0012795]